fUSD/lending_fUSD_20241125
["ID","MTS","AMOUNT","RATE_DAILY","PERIOD"]
[343245943,1732529447651,-500.0,0.00041095,30]
[343245944,1732529447661,-500.0,0.00041095,30]
[343245945,1732529447670,-500.0,0.00041095,30]
[343245946,1732529447679,-500.0,0.00041095,30]
[343245947,1732529447688,-500.0,0.00041095,30]
[343245948,1732529447697,-500.0,0.00041095,30]
[343245949,1732529447707,-500.0,0.00041095,30]
[343245950,1732529447716,-787.4,0.00041095,30]
[343245951,1732529447725,-500.0,0.00041095,30]
[343245952,1732529447734,-500.0,0.00041095,30]
[343245953,1732529447744,-724.66,0.00041095,30]
[343245954,1732529447753,-500.0,0.00041095,30]
[343245955,1732529447763,-500.0,0.00041095,30]
[343245956,1732529447772,-500.0,0.00041095,30]
[343245957,1732529447782,-500.0,0.00041095,30]
[343245958,1732529447791,-500.0,0.00041095,30]
[343245959,1732529447799,-533.29883206,0.00041095,30]
[343245960,1732529447809,-500.0,0.00041095,30]
[343245961,1732529447818,-500.0,0.00041095,30]
[343245962,1732529447827,-838.96,0.00041095,30]
[343245963,1732529447836,-500.0,0.00041095,30]
[343245964,1732529447846,-933.47,0.00041095,30]
[343245965,1732529447855,-500.0,0.00041095,30]
[343245966,1732529447865,-500.0,0.00041095,30]
[343245967,1732529447874,-592.84865635,0.00041095,30]
[343245968,1732529447883,-500.0,0.00041095,30]
[343245969,1732529447893,-500.0,0.00041095,30]
[343245970,1732529447902,-500.0,0.00041095,30]
[343245971,1732529447911,-569.3760524,0.00041095,30]
[343245972,1732529448107,-500.0,0.00041095,30]
[343245973,1732529448117,-500.0,0.00041095,30]
[343245974,1732529448128,-925.64,0.00041095,30]
[343245975,1732529448138,-500.0,0.00041095,30]
[343245976,1732529448148,-500.0,0.00041095,30]
[343245977,1732529448157,-500.0,0.00041095,30]
[343245978,1732529448166,-500.0,0.00041095,30]
[343245979,1732529448176,-500.0,0.00041095,30]
[343245980,1732529448186,-500.0,0.00041095,30]
[343245981,1732529448195,-419.88464893,0.00041095,30]
[343245982,1732529448204,-505.22617853,0.00041095,30]
[343245983,1732529448213,-500.0,0.00041095,30]
[343245984,1732529448222,-500.0,0.00041095,30]
[343245985,1732529448232,-500.0,0.00041095,30]
[343245986,1732529448242,-500.0,0.00041095,30]
[343245987,1732529448251,-500.0,0.00041095,30]
[343245988,1732529448261,-1638.18,0.00041095,30]
[343245989,1732529448271,-500.0,0.00041095,30]
[343245990,1732529448280,-500.0,0.00041095,30]
[343245991,1732529448290,-505.92601527,0.00041095,30]
[343245992,1732529448300,-500.0,0.00041095,30]
[343245993,1732529448311,-500.0,0.00041095,30]
[343245994,1732529448320,-1088.74,0.00041095,30]
[343245995,1732529448330,-500.0,0.00041095,30]
[343245996,1732529448340,-500.0,0.00041095,30]
[343245997,1732529448352,-500.0,0.00041095,30]
[343245998,1732529448362,-1915.11566592,0.00041095,30]
[343245999,1732529448393,-420.49539644,0.00041095,30]
[343246000,1732529448416,-984.1650636,0.00041095,30]
[343246001,1732529448428,-432.8408,0.00041095,30]
[343246002,1732529448439,-1822.95307404,0.00041095,30]
[343246003,1732529448449,-4487.46,0.00041095,30]
[343246004,1732529448458,-277.16957207,0.00041095,30]
[343246005,1732529448468,-500.0,0.00041095,30]
[343246006,1732529448478,-500.0,0.00041095,30]
[343246007,1732529448488,-500.0,0.00041095,30]
[343246008,1732529448497,-500.0,0.00041095,30]
[343246009,1732529448507,-500.0,0.00041095,30]
[343246010,1732529448517,-500.0,0.00041095,30]
[343246011,1732529448526,-500.0,0.00041095,30]
[343246012,1732529448536,-500.0,0.00041095,30]
[343246013,1732529448546,-500.0,0.00041095,30]
[343246014,1732529448556,-500.0,0.00041095,23]
[343246015,1732529448566,-500.0,0.00041095,30]
[343246016,1732529448576,-500.0,0.00041095,30]
[343246017,1732529448586,-500.0,0.00041095,30]
[343246018,1732529448597,-500.0,0.00041095,30]
[343246019,1732529448608,-500.0,0.00041095,30]
[343246020,1732529448618,-500.0,0.00041095,30]
[343246021,1732529448628,-5810.02,0.00041095,30]
[343246022,1732529448638,-500.0,0.00041095,7]
[343246023,1732529448648,-292.76763857,0.00041095,30]
[343246024,1732529448658,-500.0,0.00041095,30]
[343246025,1732529448668,-1234.24,0.00041095,30]
[343246026,1732529448678,-500.0,0.00041095,30]
[343246027,1732529448688,-500.0,0.00041095,30]
[343246028,1732529448697,-1067.56,0.00041095,30]
[343246029,1732529448707,-500.0,0.00041095,30]
[343246030,1732529448717,-727.69,0.00041095,30]
[343246031,1732529448726,-500.0,0.00041095,30]
[343246032,1732529448736,-500.0,0.00041095,30]
[343246033,1732529448745,-500.0,0.00041095,30]
[343246034,1732529448755,-874.85,0.00041095,30]
[343246035,1732529448764,-500.0,0.00041095,30]
[343246036,1732529448773,-14336.23,0.00041095,30]
[343246037,1732529448782,-500.0,0.00041095,30]
[343246038,1732529448791,-500.0,0.00041095,30]
[343246039,1732529448801,-506.45002673,0.00041095,30]
[343246040,1732529448810,-624.84,0.00041095,30]
[343246041,1732529448820,-500.0,0.00041095,30]
[343246042,1732529448830,-500.0,0.00041095,30]
[343246043,1732529448840,-500.0,0.00041095,30]
[343246044,1732529448852,-500.0,0.00041095,30]
[343246045,1732529448861,-511.55,0.00041095,30]
[343246046,1732529448871,-500.0,0.00041095,30]
[343246047,1732529448880,-500.0,0.00041095,30]
[343246048,1732529448889,-500.0,0.00041095,30]
[343246049,1732529448899,-500.0,0.00041095,30]
[343246050,1732529448908,-669.83,0.00041095,30]
[343246051,1732529448918,-500.0,0.00041095,30]
[343246052,1732529448926,-640.64,0.00041095,30]
[343246053,1732529448937,-198.14266461,0.00041095,14]
[343246054,1732529448948,-500.0,0.00041095,30]
[343246055,1732529448957,-500.0,0.00041095,30]
[343246056,1732529448967,-500.0,0.00041095,30]
[343246057,1732529448976,-500.0,0.00041095,30]
[343246058,1732529448985,-500.0,0.00041095,30]
[343246059,1732529448994,-500.0,0.00041095,30]
[343246060,1732529449003,-500.0,0.00041095,30]
[343246061,1732529449013,-500.0,0.00041095,30]
[343246062,1732529449023,-500.0,0.00041095,30]
[343246063,1732529449033,-5984.14,0.00041095,30]
[343246064,1732529449042,-500.0,0.00041095,30]
[343246065,1732529449052,-2731.09,0.00041095,2]
[343246066,1732529449061,-500.0,0.00041095,30]
[343246067,1732529449071,-1087.6,0.00041095,30]
[343246068,1732529449082,-500.0,0.00041095,30]
[343246069,1732529449092,-506.78853678,0.00041095,30]
[343246070,1732529449102,-500.0,0.00041095,21]
[343246071,1732529449112,-500.0,0.00041095,30]
[343246072,1732529449120,-395.41431715,0.00041095,30]
[343246073,1732529449130,-1256.11,0.00041095,30]
[343246074,1732529449139,-1038.82,0.00041095,30]
[343246075,1732529449149,-534.8,0.00041095,30]
[343246076,1732529449159,-502.30466946,0.00041095,30]
[343246077,1732529449170,-500.0,0.00041095,30]
[343246078,1732529449179,-1794.44,0.00041095,30]
[343246079,1732529449189,-500.0,0.00041095,30]
[343246080,1732529449198,-500.0,0.00041095,30]
[343246081,1732529449208,-500.0,0.00041095,30]
[343246082,1732529449218,-500.0,0.00041095,30]
[343246083,1732529449228,-1000.0,0.00041095,30]
[343246084,1732529449238,-2075.39,0.00041095,30]
[343246085,1732529449247,-561.22,0.00041095,30]
[343246086,1732529449256,-503.61123774,0.00041095,30]
[343246087,1732529449267,-536.79100198,0.00041095,30]
[343246088,1732529449277,-500.0,0.00041095,30]
[343246089,1732529449287,-500.0,0.00041095,30]
[343246090,1732529449297,-510.91462617,0.00041095,30]
[343246091,1732529449308,-501.76647119,0.00041095,30]
[343246092,1732529449317,-500.0,0.00041095,30]
[343246093,1732529449327,-1370.58,0.00041095,30]
[343246094,1732529449338,-376.44788023,0.00041095,30]
[343246095,1732529449350,-2111.67828327,0.00041095,30]
[343246096,1732529449366,-1626.90171673,0.00041095,30]
[343246097,1732529449376,-500.0,0.00041095,30]
[343246098,1732529449386,-500.0,0.00041095,30]
[343246099,1732529449397,-647.39,0.00041095,30]
[343246100,1732529449407,-500.0,0.00041095,30]
[343246101,1732529449417,-500.0,0.00041095,30]
[343246102,1732529449426,-500.0,0.00041095,30]
[343246103,1732529449437,-500.0,0.00041095,30]
[343246104,1732529449447,-500.0,0.00041095,30]
[343246105,1732529449457,-500.0,0.00041095,30]
[343246106,1732529449467,-500.0,0.00041095,30]
[343246107,1732529449477,-500.0,0.00041095,30]
[343246108,1732529449487,-500.60756127,0.00041095,30]
[343246109,1732529449496,-500.0,0.00041095,30]
[343246110,1732529449507,-500.0,0.00041095,30]
[343246111,1732529449516,-511.14382507,0.00041095,30]
[343246112,1732529449525,-500.0,0.00041095,30]
[343246113,1732529449536,-67.36450029,0.00041095,30]
[343246114,1732529449561,-432.63549971,0.00041095,30]
[343246115,1732529449570,-500.0,0.00041095,30]
[343246116,1732529449580,-500.0,0.00041095,30]
[343246117,1732529449589,-500.0,0.00041095,30]
[343246118,1732529449600,-517.04514521,0.00041095,30]
[343246119,1732529449610,-1133.48,0.00041095,30]
[343246120,1732529449619,-505.12650224,0.00041095,30]
[343246121,1732529449629,-500.0,0.00041095,30]
[343246122,1732529449639,-500.0,0.00041095,30]
[343246123,1732529449649,-67.6088228,0.00041095,30]
[343246124,1732529449890,2259.17,0.0004,120]
[343247919,1732529503759,250.0,0.00039722,120]
[343247920,1732529513243,4000.0,0.0004,120]
[343247921,1732529529703,6000.0,0.0004,120]
[343247922,1732529545981,461.72,0.00039722,120]
[343247923,1732529560340,3689.82,0.0004,120]
[343247924,1732529598792,174.95883863,0.00039968,120]
[343247925,1732529642867,150.0,0.000308,2]
[343247926,1732529642888,150.0,0.000308,2]
[343247927,1732529642909,150.0,0.000308,2]
[343247928,1732529642930,30.0,0.000308,2]
[343247929,1732529678606,150.0,0.0003252,2]
[343247930,1732529678626,150.0,0.0003252,2]
[343247931,1732529678647,150.0,0.0003252,2]
[343247932,1732529678669,150.0,0.0003252,2]
[343247933,1732529678692,150.0,0.0003252,2]
[343247934,1732529678713,150.0,0.0003252,2]
[343247935,1732529678734,150.0,0.0003252,2]
[343247936,1732529678755,150.0,0.0003252,2]
[343247937,1732529678776,150.0,0.0003252,2]
[343247938,1732529678796,150.0,0.0003252,2]
[343247939,1732529678816,150.0,0.0003252,2]
[343247940,1732529678835,150.0,0.0003252,2]
[343247941,1732529678855,5350.26,0.0003252,2]
[343247942,1732529841858,189.99,0.00039964,30]
[343247944,1732529925202,1950.51,0.0004,30]
[343247945,1732529936431,267.25149325,0.0004,30]
[343247947,1732529994625,150.0,0.00031,2]
[343247948,1732529994648,100.0,0.00031,2]
[343247949,1732529997625,50.0,0.00030685,2]
[343247950,1732529997649,117.94,0.00030685,2]
[343247952,1732530035654,340.70697712,0.0004,30]
[343247953,1732530048698,150.0,0.00018583,2]
[343247954,1732530048720,0.32,0.00018583,2]
[343247955,1732530080306,31775.45009693,0.0004,30]
[343247956,1732530086020,1249.12,0.00039314,120]
[343247958,1732530175377,150.0,0.00031425,2]
[343247959,1732530175400,23.17,0.00031425,2]
[343247960,1732530181443,250.0,0.00039281,120]
[343247961,1732530238567,6100.0,0.0004,30]
[343247962,1732530309064,150.0,0.00013,2]
[343247963,1732530309089,150.0,0.00013,2]
[343247964,1732530309113,150.0,0.00013,2]
[343247965,1732530309136,150.0,0.00013,2]
[343247966,1732530309160,150.0,0.00013,2]
[343247967,1732530309182,150.0,0.00013,2]
[343247968,1732530309209,150.0,0.00013,2]
[343247969,1732530309231,150.0,0.00013,2]
[343247970,1732530309257,150.0,0.00013,2]
[343247971,1732530309283,150.0,0.00013,2]
[343247972,1732530309305,150.0,0.00013,2]
[343247973,1732530309329,150.0,0.00013,2]
[343247974,1732530309358,150.0,0.00013,2]
[343247975,1732530309383,150.0,0.00013,2]
[343247976,1732530309408,217.652743,0.00013,2]
[343247977,1732530309430,150.0,0.00013,2]
[343247978,1732530309456,33673.270001,0.00013,2]
[343247979,1732530309485,45864.4189476,0.00013,2]
[343247980,1732530309510,2220000.0,0.00013,2]
[343247981,1732530309544,616948.58731256,0.00013,2]
[343247982,1732530317631,188.67065106,0.0004,30]
[343247983,1732530326426,150.0,0.000108,2]
[343247984,1732530326451,150.0,0.000108,2]
[343247985,1732530326478,78.8382902,0.000108,2]
[343247986,1732530329321,150.0,0.000203,2]
[343247987,1732530329346,150.0,0.000203,2]
[343247988,1732530329373,150.0,0.000203,2]
[343247989,1732530329400,150.0,0.000203,2]
[343247990,1732530329423,150.0,0.000203,2]
[343247991,1732530329447,150.0,0.000203,2]
[343247992,1732530329469,150.0,0.000203,2]
[343247993,1732530329491,150.0,0.000203,2]
[343247994,1732530329513,150.0,0.000203,2]
[343247995,1732530329539,150.0,0.000203,2]
[343247996,1732530329563,150.0,0.000203,2]
[343247997,1732530329585,150.0,0.000203,2]
[343247998,1732530329607,150.0,0.000203,2]
[343247999,1732530329629,150.0,0.000203,2]
[343248000,1732530329658,5394.61431674,0.000203,2]
[343248001,1732530332099,-150.0,0.00032999,2]
[343248002,1732530332985,-150.0,0.00032999,2]
[343248003,1732530335901,150.0,0.0001,2]
[343248004,1732530335923,0.68788269,0.0001,2]
[343248005,1732530337233,159.21211731,0.00025,2]
[343248006,1732530337253,150.0,0.00025,2]
[343248007,1732530337275,150.0,0.00025,2]
[343248008,1732530337302,40.78788269,0.00025,2]
[343248009,1732530337588,26000.0,9e-05,2]
[343248010,1732530344188,159.9,0.00012973,2]
[343248011,1732530344216,340.1,0.00012973,2]
[343248012,1732530344252,500.0,0.00013521,2]
[343248013,1732530358066,150.0,0.00014,2]
[343248014,1732530358090,119.69492122,0.00014,2]
[343248016,1732530371428,461.8330131,0.000199,3]
[343248019,1732530431085,150.0,0.000225,2]
[343248020,1732530431107,10.23736007,0.000225,2]
[343248021,1732530432006,-194.42305201,0.00032999,2]
[343248022,1732530438218,777.29159607,0.0002402,2]
[343248023,1732530454519,190.76829263,0.00024,30]
[343248024,1732530455366,14774.0,0.0004,30]
[343248025,1732530456775,328.73694014,0.00018,2]
[343248026,1732530482503,25489.7766116,0.00013,2]
[343248030,1732530525967,150.0,0.00025,2]
[343248031,1732530544450,495.0,0.0004,30]
[343248032,1732530547380,150.17,0.00039228,120]
[343248035,1732530570699,561.36,0.00039046,120]
[343248053,1732530636068,-300.0,0.00033,2]
[343248054,1732530636078,-1327.16224393,0.00033,2]
[343248055,1732530636201,-2532.53000007,0.00033,2]
[343248161,1732530638098,-4344.17340037,0.00033,2]
[343248162,1732530638110,-1833.00394874,0.00033,2]
[343248163,1732530638127,-3358.26749596,0.00033,2]
[343248164,1732530638783,-5675.86291093,0.00033,2]
[343248165,1732530638793,-350.0,0.00035,2]
[343248166,1732530638802,-400.0,0.00037,2]
[343248167,1732530638811,-1009.79,0.0003733,2]
[343248168,1732530638821,-450.0,0.00039,2]
[343248169,1732530638830,-150.0,0.00039046,2]
[343248170,1732530638839,-150.0,0.00039046,2]
[343248172,1732530638848,-150.0,0.00039046,2]
[343248174,1732530638857,-150.0,0.00039046,2]
[343248175,1732530638866,-150.0,0.00039046,2]
[343248176,1732530638875,-150.0,0.00039046,2]
[343248178,1732530638884,-150.0,0.00039046,2]
[343248180,1732530638893,-150.0,0.00039046,2]
[343248182,1732530638902,-150.0,0.00039046,2]
[343248184,1732530638911,-150.0,0.00039046,2]
[343248186,1732530638919,-150.0,0.00039046,2]
[343248188,1732530638928,-150.0,0.00039046,2]
[343248190,1732530638937,-150.0,0.00039046,2]
[343248192,1732530638946,-150.0,0.00039046,2]
[343248194,1732530638955,-150.0,0.00039046,2]
[343248195,1732530638963,-150.0,0.00039046,2]
[343248197,1732530638972,-150.0,0.00039046,2]
[343248214,1732530639166,-150.0,0.00039046,2]
[343248215,1732530639176,-194.88458345,0.00039046,2]
[343248216,1732530639189,-3728.52,0.00039069,2]
[343248217,1732530639199,-200.0,0.00039072,2]
[343248218,1732530639208,-786.57,0.00039072,2]
[343248219,1732530639217,-6330.57,0.00039072,2]
[343248220,1732530639227,-150.99,0.00039072,2]
[343248221,1732530639236,-269.9,0.00039072,10]
[343248222,1732530639245,-999.99,0.00039072,2]
[343248223,1732530639254,-785.64,0.00039075,2]
[343248224,1732530639263,-250.0,0.00039079,2]
[343248225,1732530639273,-200.0,0.00039104,2]
[343248226,1732530639282,-1130.61,0.00039122,2]
[343248227,1732530639291,-200.0,0.00039154,2]
[343248228,1732530639300,-500.0,0.0003917,2]
[343248229,1732530639309,-500.0,0.00039182,2]
[343248230,1732530639318,-1000.0,0.00039186,2]
[343248231,1732530639327,-500.0,0.00039213,2]
[343248232,1732530639336,-250.0,0.00039271,2]
[343248233,1732530639345,-300.0,0.00039329,2]
[343248234,1732530639354,-760.99,0.00039333,2]
[343248235,1732530639362,-892.93,0.00039353,2]
[343248236,1732530639371,-166.6,0.00039379,2]
[343248237,1732530639380,-4484.67574685,0.00039416,2]
[343248238,1732530639392,-981.3,0.00039416,2]
[343248239,1732530639402,-1182.996,0.00039416,2]
[343248240,1732530639413,-482.00434,0.00039416,2]
[343248242,1732530640250,-1013.268,0.00039416,2]
[343248243,1732530640261,-5019.68047745,0.00039416,2]
[343248293,1732530643580,200.0,0.0004,30]
[343248296,1732530643914,-3189.40081918,0.00039416,2]
[343248297,1732530643927,-7546.67461652,0.00039416,2]
[343248298,1732530643936,-150.0,0.00039459,2]
[343248299,1732530643946,-1103.39597145,0.00039519,2]
[343248300,1732530643958,-1381.03694009,0.00039519,2]
[343248301,1732530644029,-1018.85708846,0.00039519,2]
[343248302,1732530644038,-1009.79,0.00039594,2]
[343248303,1732530644047,-183.68,0.00039617,10]
[343248304,1732530644056,-153.07,0.00039617,10]
[343248305,1732530644065,-765.37,0.00039617,10]
[343248306,1732530644074,-134.74980387,0.00039627,2]
[343248307,1732530644085,-6144.49801666,0.00039627,2]
[343248308,1732530644095,-835.6489092,0.00039627,2]
[343248309,1732530644358,-40174.68327027,0.00039627,2]
[343248310,1732530644368,-351.79,0.0003973,2]
[343248315,1732530644578,-867.76492697,0.00039881,2]
[343248316,1732530644588,-867.76492697,0.00039881,2]
[343248317,1732530644598,-200.0,0.00039886,2]
[343248319,1732530644607,-867.76492697,0.00039899,2]
[343248321,1732530644616,-759.95,0.000399,2]
[343248322,1732530644626,-1575.7746214,0.00039902,2]
[343248323,1732530644635,-28869.11088443,0.00039907,2]
[343248324,1732530644645,-21222.12541064,0.00039913,2]
[343248333,1732530646019,-492.255,0.00039913,2]
[343248334,1732530646139,-315.53462007,0.00039913,2]
[343248335,1732530646150,-432.37150104,0.00039913,2]
[343248336,1732530646179,-6406.82435268,0.00039913,2]
[343248337,1732530646189,-867.76492697,0.00039915,2]
[343248338,1732530646199,-336.58761092,0.0003992,2]
[343248339,1732530646208,-28869.11088443,0.00039925,2]
[343248340,1732530646218,-336.58761092,0.00039929,2]
[343248341,1732530646227,-28869.11088443,0.00039932,2]
[343248342,1732530646237,-336.58761092,0.00039935,2]
[343248343,1732530646247,-867.76492697,0.00039935,2]
[343248344,1732530646257,-1575.7746214,0.00039935,2]
[343248345,1732530646266,-28869.11088443,0.00039937,2]
[343248346,1732530646277,-1575.7746214,0.00039943,2]
[343248347,1732530646287,-200.0,0.0003995,2]
[343248348,1732530646298,-6510.67803005,0.00039951,2]
[343248349,1732530646337,-22358.43285438,0.00039951,2]
[343248350,1732530646347,-1575.7746214,0.00039956,2]
[343248351,1732530646356,-336.58761092,0.00039964,2]
[343248352,1732530646365,-1575.7746214,0.00039975,2]
[343248353,1732530646374,-336.58761092,0.00039976,2]
[343248354,1732530646383,-867.76492697,0.00039986,2]
[343248355,1732530646392,-336.58761092,0.00039994,2]
[343248356,1732530646401,-1575.7746214,0.00039995,2]
[343248357,1732530646410,-3315.53042981,0.00040016,15]
[343248358,1732530646419,-2657.53330891,0.00040081,15]
[343248359,1732530646434,-17131.34552964,0.000402,120]
[343248360,1732530646443,-152.0,0.00040267,3]
[343248361,1732530646452,-1000.0,0.00040399,2]
[343248363,1732530646461,-1930.13528013,0.000404,120]
[343248364,1732530646474,-23069.86471987,0.000404,120]
[343248366,1732530646484,-1432.117,0.0004068,5]
[343248368,1732530646492,-1432.117,0.0004068,5]
[343248370,1732530646501,-834.82615401,0.0004069,2]
[343248371,1732530646512,-1432.117,0.000407,5]
[343248373,1732530646521,-3315.53042978,0.00040784,15]
[343248375,1732530646533,-210.0,0.000408,2]
[343248377,1732530646542,-10000.0,0.000408,120]
[343248378,1732530646551,-500.0,0.000408,14]
[343248380,1732530646561,-2657.53330882,0.00040842,15]
[343248382,1732530646570,-564.14573214,0.00040897,28]
[343248384,1732530646579,-316.02290203,0.00040898,2]
[343248386,1732530646588,-1000.0,0.000409,14]
[343248388,1732530646598,-501.42660062,0.00040973,2]
[343248389,1732530646607,-313.54017351,0.00040973,5]
[343248391,1732530646617,-159.28840084,0.00040973,2]
[343248393,1732530646626,-1127.38,0.00040977,2]
[343248395,1732530646635,-1127.38,0.00040986,2]
[343248397,1732530646645,-1127.38,0.00040986,2]
[343248399,1732530646655,-1127.38,0.00040987,2]
[343248401,1732530646663,-1127.38,0.00040987,2]
[343248402,1732530646673,-1127.38,0.00040987,2]
[343248404,1732530646682,-1127.38,0.00040987,2]
[343248406,1732530646692,-1127.38,0.00040987,2]
[343248408,1732530646701,-1127.38,0.00040988,2]
[343248410,1732530646711,-1127.38,0.00040988,2]
[343248412,1732530646720,-153.17,0.00040989,2]
[343248414,1732530646730,-201.56753382,0.00040994,16]
[343248415,1732530646739,-500.0,0.00040995,21]
[343248417,1732530646748,-500.0,0.00040995,21]
[343248419,1732530646758,-500.0,0.00040996,21]
[343248421,1732530646768,-500.0,0.00040996,21]
[343248423,1732530646780,-1988.92,0.00040996,21]
[343248425,1732530646789,-500.0,0.00040996,21]
[343248427,1732530646799,-1313.47,0.00040996,21]
[343248429,1732530646808,-500.0,0.00040996,21]
[343248431,1732530646817,-3590.08,0.00040996,21]
[343248433,1732530646826,-620.42,0.00040996,21]
[343248435,1732530646837,-1087.98,0.00040996,21]
[343248437,1732530646846,-5416.69,0.00040996,21]
[343248439,1732530646855,-500.0,0.00040996,21]
[343248441,1732530646863,-926.27,0.00040996,21]
[343248442,1732530646873,-621.02,0.00040996,21]
[343248444,1732530646882,-1140.61,0.00040996,21]
[343248446,1732530646891,-3148.8,0.00040996,21]
[343248448,1732530646900,-4530.93,0.00040996,21]
[343248450,1732530646908,-600.4,0.00040996,21]
[343248452,1732530646919,-500.0,0.00040996,21]
[343248454,1732530646928,-500.0,0.00040996,21]
[343248456,1732530646936,-11911.54760456,0.00040996,21]
[343248458,1732530646948,-6973.91710853,0.00040996,21]
[343248506,1732530657830,200.0,0.000352,5]
[343248507,1732530659490,300000.00000001,0.0004,30]
[343248510,1732530794078,158.13,0.00030685,2]
[343248512,1732530801784,204.0,0.0004,120]
[343248513,1732530814679,155.77788269,0.00024932,2]
[343248514,1732530814709,344.22211731,0.00024932,2]
[343248515,1732530815173,500.0,0.00024932,2]
[343248516,1732530815691,500.0,0.00024932,2]
[343248517,1732530850137,250.0,0.00039968,120]
[343248518,1732530852291,150.32,0.00019146,2]
[343248519,1732530943319,-156.05,0.00040012,120]
[343248520,1732530943344,-493.62751564,0.00040898,28]
[343248521,1732530943367,-500.0,0.00040959,120]
[343248522,1732530943393,-500.0,0.00040995,21]
[343248523,1732530943417,-521.59957796,0.00040995,21]
[343248524,1732530943441,-500.0,0.00040995,21]
[343248525,1732530943465,-500.0,0.00040995,21]
[343248526,1732530943489,-500.0,0.00040995,21]
[343248527,1732530943512,-516.37848421,0.00040995,21]
[343248528,1732530943540,-500.0,0.00040995,21]
[343248529,1732530943565,-500.0,0.00040995,21]
[343248530,1732530943593,-500.0,0.00040995,21]
[343248531,1732530943617,-500.0,0.00040995,21]
[343248532,1732530943641,-500.0,0.00040995,21]
[343248533,1732530943665,-500.0,0.00040995,21]
[343248534,1732530943688,-500.0,0.00040995,21]
[343248535,1732530943712,-510.07802235,0.00040995,21]
[343248536,1732530943735,-511.49520696,0.00040995,21]
[343248537,1732530943759,-500.0,0.00040995,21]
[343248538,1732530943786,-500.0,0.00040995,21]
[343248539,1732530944122,-500.0,0.00040995,21]
[343248540,1732530944150,-500.0,0.00040995,21]
[343248541,1732530944176,-500.0,0.00040995,21]
[343248542,1732530944199,-1906.05,0.00040995,21]
[343248543,1732530944223,-371.25673842,0.00040995,21]
[343248544,1732530944246,-500.0,0.00040995,21]
[343248545,1732530944269,-500.0,0.00040995,21]
[343248546,1732530944299,-1258.74,0.00040995,21]
[343248547,1732530944323,-254.1671499,0.00040995,21]
[343248548,1732530944346,-500.0,0.00040995,21]
[343248549,1732530944369,-580.89,0.00040995,21]
[343248550,1732530944393,-3440.49,0.00040995,21]
[343248551,1732530944417,-594.57,0.00040995,21]
[343248552,1732530944440,-500.0,0.00040995,21]
[343248553,1732530944463,-346.63017881,0.00040995,21]
[343248554,1732530944488,-1042.64,0.00040995,21]
[343248555,1732530944511,-500.0,0.00040995,21]
[343248556,1732530944540,-5191.0,0.00040995,21]
[343248557,1732530944563,-500.0,0.00040995,21]
[343248558,1732530944587,-595.15,0.00040995,21]
[343248559,1732530944612,-887.67,0.00040995,21]